bitfinex-derivatives/quotes_BTCF0:USTF0_20250921
["timestamp","ask_amount","ask_price","bid_price","bid_amount"]
[1758461571311,1.29840479,115810.0,115800.0,0.13113866]
[1758461578729,0.50784479,115810.0,115800.0,0.13113866]
[1758461579026,1.29780479,115810.0,115800.0,0.13113866]
[1758461579330,0.93700479,115810.0,115800.0,0.13113866]
[1758461582323,0.93688479,115810.0,115800.0,0.13113866]
[1758461583632,0.14704479,115810.0,115800.0,0.13113866]
[1758461583831,0.93688479,115810.0,115800.0,0.13113866]
[1758461585525,0.93688479,115810.0,115800.0,0.02242]
[1758461586028,0.14704479,115810.0,115800.0,0.02242]
[1758461586333,0.93680479,115810.0,115800.0,0.02242]
[1758461587132,0.93680479,115810.0,115800.0,0.13115197]
[1758461588726,0.93680479,115810.0,115800.0,0.02242]
[1758461592630,0.14704479,115810.0,115800.0,0.02242]
[1758461592844,0.93636479,115810.0,115800.0,0.02242]
[1758461593240,0.14704479,115810.0,115800.0,0.02242]
[1758461593441,0.93636479,115810.0,115800.0,0.02242]
[1758461596542,0.93636479,115810.0,115800.0,0.13115242]
[1758461599844,0.93636479,115810.0,115800.0,0.14439242]
[1758461604148,0.93636479,115810.0,115800.0,0.03566]
[1758461611245,0.93636479,115810.0,115800.0,0.39646]
[1758461621066,0.14704479,115810.0,115800.0,0.39646]
[1758461621271,0.93488479,115810.0,115800.0,0.39646]
[1758461621863,0.14704479,115810.0,115800.0,0.39646]
[1758461622061,0.93480479,115810.0,115800.0,0.39646]
[1758461622463,0.14704479,115810.0,115800.0,0.39646]
[1758461622765,0.93480479,115810.0,115800.0,0.39646]
[1758461625064,0.93480479,115810.0,115800.0,0.03566]
[1758461634267,0.93480479,115810.0,115800.0,0.14441074]
[1758461639570,0.93480479,115810.0,115800.0,0.03566]
[1758461643175,0.9349245,115810.0,115800.0,0.03566]
[1758461652582,0.1471645,115810.0,115800.0,0.03566]
[1758461652884,0.9343645,115810.0,115800.0,0.03566]
[1758461657877,0.9343645,115810.0,115800.0,0.02242]
[1758461660184,0.9343645,115810.0,115800.0,0.1311904]
[1758461662990,0.9343645,115810.0,115800.0,0.02242]
[1758461663688,0.9343645,115810.0,115800.0,0.13119691]
[1758461673595,0.9343645,115810.0,115800.0,0.02242]
[1758461679902,0.1471645,115810.0,115800.0,0.02242]
[1758461680102,0.9339245,115810.0,115800.0,0.02242]
[1758461682903,0.9339245,115810.0,115800.0,0.13119969]
[1758461685701,0.9339245,115810.0,115800.0,0.02242]
[1758461690611,0.9339245,115810.0,115800.0,0.1311997]
[1758461692213,0.1471645,115810.0,115800.0,0.1311997]
[1758461692413,0.9336845,115810.0,115800.0,0.1311997]
[1758461702723,0.9336845,115810.0,115800.0,0.1097797]
[1758461705628,0.9336845,115810.0,115800.0,0.001]
[1758461710328,1.2944845,115810.0,115800.0,1e-07]
[1758461710533,1.2944845,115810.0,115800.0,0.10878386]
[1758461713736,1.2944845,115810.0,115800.0,1e-07]
[1758461718236,1.2944845,115810.0,115800.0,0.10878386]
[1758461723933,1.2944845,115810.0,115800.0,1e-07]
[1758461739945,1.2944845,115810.0,115800.0,3e-08]
[1758461753861,0.1229645,115800.0,115790.0,0.00010003]
[1758461754061,0.1230645,115800.0,115790.0,3e-08]
[1758461755262,0.1250645,115800.0,115790.0,0.00100003]
[1758461755856,0.4858645,115800.0,115790.0,0.00100003]
[1758461756454,1.2722645,115800.0,115790.0,0.001]
[1758461756963,0.4858645,115800.0,115790.0,0.001]
[1758461757262,1.2722645,115800.0,115790.0,0.001]
[1758461758962,1.2722645,115800.0,115790.0,0.00100003]
[1758461759165,0.4858645,115800.0,115790.0,0.00100003]
[1758461759364,1.2722245,115800.0,115790.0,0.00100003]
[1758461759564,0.4858645,115800.0,115790.0,0.00100003]
[1758461759963,1.2722245,115800.0,115790.0,0.00100003]
[1758461765669,1.29253961,115800.0,115790.0,0.001]
[1758461766362,1.29253961,115800.0,115790.0,0.00100003]
[1758461767867,1.29253961,115800.0,115790.0,3e-08]
[1758461770062,1.29249961,115800.0,115790.0,3e-08]
[1758461787376,0.1220088,115790.0,115780.0,0.3997235]
[1758461787683,0.1221088,115790.0,115780.0,0.3996235]
[1758461788373,0.1221088,115790.0,115780.0,0.4016235]
[1758461788880,0.1231088,115790.0,115780.0,0.4036235]
[1758461789577,0.1231088,115790.0,115780.0,0.0428235]
[1758461789779,0.1231088,115790.0,115780.0,0.4036235]
[1758461791179,0.19311772,115790.0,115780.0,0.4036235]
[1758461796888,0.19311772,115790.0,115780.0,0.40362347]
[1758461798592,0.19311772,115790.0,115780.0,0.04282347]
[1758461798890,0.19311772,115790.0,115780.0,0.40362347]
[1758461800190,0.19311772,115790.0,115780.0,0.37536237]
[1758461800994,0.19311772,115790.0,115780.0,0.10880175]
[1758461801195,0.19311772,115790.0,115780.0,0.09118129]
[1758461801601,0.19311772,115790.0,115780.0,0.01583689]
[1758461801791,0.19311772,115790.0,115780.0,9e-08]
[1758461809696,0.19311772,115790.0,115780.0,0.04806398]
[1758461810399,0.19311772,115790.0,115780.0,8e-08]
[1758461823505,0.098996,115780.0,115770.0,1.16436757]
[1758461823706,0.099096,115780.0,115770.0,1.16416757]
[1758461825501,0.099096,115780.0,115770.0,1.16716757]
[1758461826710,0.100096,115780.0,115770.0,1.17216757]
[1758461829903,0.100096,115780.0,115770.0,1.17216749]
[1758461834312,0.122426,115780.0,115770.0,1.17200749]
[1758461834507,0.122426,115780.0,115770.0,0.38628749]
[1758461834813,0.122426,115780.0,115770.0,1.17196749]
[1758461835015,0.122426,115780.0,115770.0,1.24884018]
[1758461835214,0.122426,115780.0,115770.0,1.22563196]
[1758461836015,0.122426,115780.0,115770.0,0.43995196]
[1758461836306,0.122426,115780.0,115770.0,7e-08]
[1758461837014,0.372426,115780.0,115770.0,7e-08]
[1758461849520,0.39284933,115780.0,115760.0,0.37573383]
[1758461849824,0.1228922,115730.0,115720.0,0.40078973]
[1758461850023,0.1228922,115730.0,115720.0,0.03999284]
[1758461850327,0.4836922,115730.0,115720.0,0.03999284]
[1758461850825,0.4836922,115730.0,115720.0,4e-08]
[1758461851223,0.0863597,115720.0,115710.0,0.78562]
[1758461851428,0.1228997,115720.0,115710.0,0.78552]
[1758461852126,0.13329868,115720.0,115710.0,0.78552]
[1758461852326,0.13429868,115720.0,115710.0,0.79552]
[1758461853127,0.13729868,115720.0,115710.0,0.81752]
[1758461868531,0.13729868,115720.0,115710.0,0.032]
[1758461868835,0.49819868,115720.0,115710.0,0.032]
[1758461870529,0.13739868,115720.0,115710.0,0.3928]
[1758461870836,0.1269997,115720.0,115710.0,0.3928]
[1758461871036,0.1039897,115720.0,115710.0,0.3928]
[1758461871235,0.1269997,115720.0,115710.0,0.3928]
[1758461877638,0.1269997,115720.0,115710.0,1.17836]
[1758461877839,0.1269997,115720.0,115710.0,0.3928]
[1758461878140,0.1269997,115720.0,115710.0,1.17836]
[1758461880738,0.1039897,115720.0,115710.0,1.2647275]
[1758461881039,0.0904597,115720.0,115710.0,1.5147275]
[1758461881240,0.03277044,115730.0,115720.0,0.00834]
[1758461881541,0.1214825,115730.0,115720.0,0.79386]
[1758461881740,0.1214825,115730.0,115720.0,0.8802202]
[1758461881940,0.1214825,115730.0,115720.0,1.2410202]
[1758461882137,0.42766689,115740.0,115730.0,0.03416]
[1758461882336,0.44978689,115740.0,115730.0,0.03416]
[1758461884340,0.52173625,115740.0,115730.0,0.04816]
[1758461884843,0.52273625,115740.0,115730.0,0.05616]
[1758461886142,0.53574625,115740.0,115730.0,0.05616]
[1758461897359,0.56550895,115740.0,115730.0,0.05616]
[1758461899657,0.56550895,115740.0,115730.0,0.16495479]
[1758461900050,0.56550895,115740.0,115730.0,0.05616]
[1758461900250,0.56560895,115740.0,115730.0,0.05616]
[1758461902960,0.20480895,115740.0,115730.0,0.05616]
[1758461914679,0.20480895,115740.0,115730.0,0.04346]
[1758461932891,0.20480895,115740.0,115730.0,0.15233821]
[1758461939793,0.56560895,115740.0,115730.0,0.15233821]
[1758461943795,0.56560895,115740.0,115730.0,0.04346]
[1758461958506,0.56560895,115740.0,115730.0,0.15231084]
[1758461960105,0.56560895,115740.0,115730.0,0.04346]
[1758461962308,0.56560895,115740.0,115730.0,0.15231152]
[1758461969209,0.56560895,115740.0,115730.0,0.13085152]
[1758461969913,0.56560895,115740.0,115730.0,0.15228152]
[1758461970916,0.58565965,115740.0,115730.0,0.15228152]
[1758461978328,0.22485965,115740.0,115730.0,0.15228152]
[1758461978513,0.58565965,115740.0,115730.0,0.15228152]
[1758461983323,0.22485965,115740.0,115730.0,0.15228152]
[1758461983518,0.58565965,115740.0,115730.0,0.15228152]
[1758461984124,0.58565965,115740.0,115730.0,0.04343]
[1758461990627,0.58565965,115740.0,115730.0,0.15231162]
[1758461999633,0.58565965,115740.0,115730.0,0.04343]
[1758462001929,0.22485965,115740.0,115730.0,0.04343]
[1758462002133,0.58565965,115740.0,115730.0,0.04343]
[1758462003334,0.22485965,115740.0,115730.0,0.04343]
[1758462003637,0.58565965,115740.0,115730.0,0.04343]
[1758462005536,0.58565965,115740.0,115730.0,0.15231162]
[1758462008333,0.22485965,115740.0,115730.0,0.15231162]
[1758462008534,0.58565965,115740.0,115730.0,0.15231162]
[1758462008838,0.58565965,115740.0,115730.0,0.04343]
[1758462009239,0.58565965,115740.0,115730.0,0.15231313]
[1758462009940,0.22485965,115740.0,115730.0,0.15231313]
[1758462010142,0.58565965,115740.0,115730.0,0.15231313]
[1758462011035,0.58565965,115740.0,115730.0,0.13088313]
[1758462011741,0.58565965,115740.0,115730.0,0.022]
[1758462015342,1.36961965,115740.0,115730.0,0.022]
[1758462015543,1.61961965,115740.0,115730.0,0.022]
[1758462020851,1.36961965,115740.0,115730.0,1e-07]
[1758462023549,1.61961965,115740.0,115730.0,1e-07]
[1758462024552,1.61961965,115740.0,115730.0,3e-08]
[1758462025458,0.1002236,115730.0,115720.0,0.01766656]
[1758462025758,0.4825636,115730.0,115720.0,0.01746656]
[1758462026453,0.4835636,115730.0,115720.0,0.02446656]
[1758462026656,1.2674036,115730.0,115720.0,0.02446656]
[1758462027253,0.4835636,115730.0,115720.0,0.02446656]
[1758462027453,1.2674036,115730.0,115720.0,0.02446656]
[1758462027653,1.2674036,115730.0,115720.0,0.03746656]
[1758462027855,1.2704036,115730.0,115720.0,0.03746656]
[1758462028150,1.2704036,115730.0,115720.0,0.02]
[1758462028355,1.2704036,115730.0,115720.0,0.03735174]
[1758462028548,0.4865636,115730.0,115720.0,0.03735174]
[1758462028749,1.2704036,115730.0,115720.0,0.03735174]
[1758462030453,0.4865636,115730.0,115720.0,0.03735174]
[1758462031148,1.2703636,115730.0,115720.0,0.03735174]
[1758462032555,1.2703636,115730.0,115720.0,0.14611801]
[1758462033947,1.2703636,115730.0,115720.0,0.03774571]
[1758462034259,0.1216711,115720.0,115710.0,0.0002]
[1758462034460,0.1216786,115710.0,115700.0,0.17772278]
[1758462034659,0.10773405,115710.0,115700.0,0.02287]
[1758462036061,0.10473405,115710.0,115700.0,0.04287]
[1758462036761,0.10573405,115710.0,115700.0,0.04887]
[1758462041961,0.10573405,115710.0,115700.0,0.15759529]
[1758462042364,0.10573405,115710.0,115700.0,0.04887]
[1758462043366,0.10573405,115710.0,115700.0,0.15759715]
[1758462043871,0.10573405,115710.0,115700.0,0.04887]
[1758462045667,0.10573405,115710.0,115700.0,0.15760354]
[1758462045866,0.10573405,115710.0,115700.0,0.13473354]
[1758462048169,0.10573405,115710.0,115700.0,0.04887]
[1758462051070,0.10573405,115710.0,115700.0,0.026]
[1758462053269,0.10573405,115710.0,115700.0,0.04887]
[1758462062582,0.10573405,115710.0,115700.0,0.15771665]
[1758462066881,0.10573405,115710.0,115700.0,0.04887]
[1758462067278,0.10573405,115710.0,115700.0,0.15771665]
[1758462070084,0.10573405,115710.0,115700.0,0.04887]
[1758462070880,0.46653405,115710.0,115700.0,0.04887]
[1758462073289,0.46653405,115710.0,115700.0,0.15774654]
[1758462073981,0.46653405,115710.0,115700.0,0.13487654]
[1758462074181,0.46653405,115710.0,115700.0,0.026]
[1758462075890,0.46653405,115710.0,115700.0,0.0474]
[1758462087013,0.46653405,115710.0,115700.0,0.0314]
[1758462087611,1.25001405,115710.0,115700.0,0.0314]
[1758462093115,1.25001405,115710.0,115700.0,0.14026415]
[1758462093614,1.25001405,115710.0,115700.0,0.0314]
[1758462097018,1.25001405,115710.0,115700.0,0.14026415]
[1758462098619,1.25001405,115710.0,115700.0,0.22664115]
[1758462098820,1.25001405,115710.0,115700.0,0.117777]
[1758462102622,0.46653405,115710.0,115700.0,0.117777]
[1758462102824,1.24985405,115710.0,115700.0,0.117777]
[1758462104821,1.33623105,115710.0,115690.0,0.24123208]
[1758462105027,1.24985405,115710.0,115700.0,0.108047]
[1758462106726,1.24885405,115710.0,115700.0,0.108047]
[1758462106916,1.24985405,115710.0,115700.0,0.108047]
[1758462112927,1.24985405,115710.0,115700.0,0.21694793]
[1758462118436,0.88905405,115710.0,115700.0,0.21694793]
[1758462118738,1.24985405,115710.0,115700.0,0.21694793]
[1758462121038,1.24985405,115710.0,115700.0,0.108047]
[1758462128246,1.24985405,115710.0,115700.0,0.02167]
[1758462134152,1.24985405,115710.0,115700.0,0.13057356]
[1758462135559,0.88905405,115710.0,115700.0,0.13057356]
[1758462135858,1.24808264,115710.0,115700.0,0.13057356]
[1758462138958,1.24808264,115710.0,115700.0,0.02167]
[1758462141562,1.24808264,115710.0,115700.0,0.17632278]
[1758462143265,1.24808264,115710.0,115700.0,0.02167]
[1758462149267,0.121167,115700.0,115690.0,0.26262158]
[1758462149470,0.121267,115700.0,115690.0,0.26242158]
[1758462150470,0.18924347,115700.0,115690.0,0.26242158]
[1758462151273,0.19024347,115700.0,115690.0,0.26242158]
[1758462151571,0.19424347,115700.0,115690.0,0.27242158]
[1758462151959,0.19424347,115700.0,115690.0,0.18604278]
[1758462154074,0.19424347,115700.0,115690.0,0.27242768]
[1758462173587,0.19424347,115700.0,115690.0,0.1177749]
[1758462181690,0.19424347,115700.0,115690.0,0.27242768]
[1758462186600,0.19424347,115700.0,115690.0,0.1177749]
[1758462187297,0.19424347,115700.0,115690.0,0.27242768]
[1758462188187,0.19424347,115700.0,115690.0,0.1177749]
[1758462189002,0.19424347,115700.0,115690.0,0.27242768]
[1758462198704,0.19424347,115700.0,115690.0,0.1177749]
[1758462206726,0.19424347,115700.0,115690.0,0.27242768]
[1758462230750,0.19424347,115700.0,115690.0,0.1177749]
[1758462239847,0.19424347,115700.0,115690.0,0.27380072]
[1758462241950,0.10786647,115700.0,115690.0,0.27380072]
[1758462242149,0.19424467,115700.0,115690.0,1.06297072]
[1758462245857,0.19424467,115700.0,115690.0,1.05616072]
[1758462246852,0.19424467,115700.0,115690.0,0.90150794]
[1758462255671,0.19424467,115700.0,115690.0,1.05616072]
[1758462261175,0.19424467,115700.0,115690.0,0.27380072]
[1758462261377,0.19424467,115700.0,115690.0,1.05604072]
[1758462279292,0.19424467,115700.0,115690.0,0.27380072]
[1758462279492,0.19424467,115700.0,115690.0,0.96949582]
[1758462281094,0.19424467,115700.0,115690.0,0.18741582]
[1758462281294,0.19424467,115700.0,115690.0,0.96949582]
[1758462290099,0.19424467,115700.0,115690.0,1.05588152]
[1758462316015,0.19424467,115700.0,115690.0,0.27380152]
[1758462316216,0.19424467,115700.0,115690.0,1.05564152]
[1758462318216,0.19424467,115700.0,115690.0,1.07300503]
[1758462336434,0.19424467,115700.0,115690.0,0.98661933]
[1758462360144,0.19424467,115700.0,115690.0,0.98524629]
[1758462396472,0.18150467,115700.0,115690.0,0.98524629]
[1758462396663,0.18150467,115700.0,115690.0,1.34604629]
[1758462397376,0.18150467,115700.0,115690.0,1.19139351]
[1758462398164,0.18150467,115700.0,115690.0,1.27777961]
[1758462398971,0.18150467,115700.0,115690.0,1.43332722]
[1758462402060,0.18150467,115700.0,115690.0,1.34694112]
[1758462409277,0.18150467,115700.0,115690.0,0.56510112]
[1758462409478,0.18150467,115700.0,115690.0,1.34630112]
[1758462417588,0.18150467,115700.0,115690.0,1.19075351]
[1758462418885,0.18150467,115700.0,115690.0,1.3462826]
[1758462420482,0.18150467,115700.0,115690.0,1.3462426]
[1758462423693,0.18150467,115700.0,115690.0,1.19071351]
[1758462425294,0.19420467,115700.0,115690.0,1.19071351]
[1758462429304,0.19420467,115700.0,115690.0,1.3462426]
[1758462429800,0.19420467,115700.0,115690.0,1.4326287]
[1758462434111,0.19420467,115700.0,115690.0,1.27709961]
[1758462438219,0.19420467,115700.0,115690.0,1.2597361]
[1758462441622,0.19420467,115700.0,115690.0,0.8989361]
[1758462441919,0.19420467,115700.0,115690.0,1.2597361]
[1758462443821,0.19420467,115700.0,115690.0,1.41530746]
[1758462444720,0.19420467,115700.0,115690.0,1.2597361]
[1758462452729,0.19420467,115700.0,115690.0,1.41530746]
[1758462453631,0.19420467,115700.0,115690.0,1.2597361]
[1758462458833,0.19420467,115700.0,115690.0,1.41530736]
[1758462462934,0.19420467,115700.0,115690.0,1.2597361]
[1758462468436,0.18150467,115700.0,115690.0,1.2597361]
[1758462468739,0.18150467,115700.0,115690.0,1.41530736]
[1758462469440,0.18150467,115700.0,115690.0,1.2597361]
[1758462470745,0.18150467,115700.0,115690.0,1.41530738]
[1758462474746,0.18150467,115700.0,115690.0,1.2597361]
[1758462481349,0.18150467,115700.0,115690.0,1.41530738]
[1758462484552,0.18150467,115700.0,115690.0,1.2597361]
[1758462486955,0.18150467,115700.0,115690.0,1.41530721]
[1758462491151,0.09512647,115700.0,115690.0,1.41530721]
[1758462494256,0.09512647,115700.0,115690.0,1.2597361]
[1758462496159,0.09512647,115700.0,115690.0,1.41530728]
[1758462502659,0.09512647,115700.0,115690.0,1.2597361]
[1758462506865,0.18150507,115700.0,115690.0,1.2597361]
[1758462510362,0.18150507,115700.0,115690.0,1.41530175]
[1758462518368,0.18150507,115700.0,115690.0,1.05450175]
[1758462518569,0.18150507,115700.0,115690.0,1.41530175]
[1758462525667,0.18150507,115700.0,115690.0,1.2597361]
[1758462541892,0.18150507,115700.0,115690.0,1.41530732]
[1758462542694,0.18150507,115700.0,115690.0,1.2597361]
[1758462542888,0.0051,115700.0,115690.0,1.5097361]
[1758462543190,0.58258235,115740.0,115730.0,0.02191]
[1758462544392,0.58358235,115740.0,115730.0,0.02191]
[1758462546196,0.59158235,115740.0,115730.0,0.02491]
[1758462547697,0.59158235,115740.0,115730.0,0.003]
[1758462548494,0.23078235,115740.0,115730.0,0.003]
[1758462548692,0.59158235,115740.0,115730.0,0.003]
[1758462552599,0.23078235,115740.0,115730.0,0.003]
[1758462552898,0.59158235,115740.0,115730.0,0.003]
[1758462553097,1.37218235,115740.0,115730.0,0.003]
[1758462572308,1.01138235,115740.0,115730.0,0.003]
[1758462572510,1.37228235,115740.0,115730.0,0.003]
[1758462572709,0.59168235,115740.0,115730.0,0.003]
[1758462572905,1.37220235,115740.0,115730.0,0.003]
[1758462576111,0.59168235,115740.0,115730.0,0.003]
[1758462576312,1.37216235,115740.0,115730.0,0.003]
[1758462577112,1.37216235,115740.0,115730.0,0.02445]
[1758462581014,1.37212235,115740.0,115730.0,0.02445]
[1758462585019,0.59168235,115740.0,115730.0,0.27445]
[1758462586321,1.37212235,115740.0,115730.0,0.27445]
[1758462600530,0.59168235,115740.0,115730.0,0.27445]
[1758462600829,1.37204235,115740.0,115730.0,0.27445]
[1758462601622,1.37200235,115740.0,115730.0,0.27445]
[1758462611642,1.37200235,115740.0,115730.0,0.38334956]
[1758462612042,1.37200235,115740.0,115730.0,0.27445]
[1758462614456,1.37200235,115740.0,115730.0,0.38334956]
[1758462618861,1.37200235,115740.0,115730.0,0.27445]
[1758462623761,1.37200235,115740.0,115730.0,0.38334956]
[1758462628669,1.37188235,115740.0,115730.0,0.38334956]
[1758462628967,1.37188235,115740.0,115730.0,0.27445]
[1758462632267,1.37188235,115740.0,115730.0,0.38334956]
[1758462635176,0.59168235,115740.0,115730.0,0.38334956]
[1758462639174,0.59168235,115740.0,115730.0,0.27445]
[1758462639476,0.59168235,115740.0,115730.0,0.02445]
[1758462642574,0.23088235,115740.0,115730.0,0.02445]
[1758462642778,0.59168235,115740.0,115730.0,0.02445]
[1758462644772,0.59168235,115740.0,115730.0,0.13334956]
[1758462655177,0.59168235,115740.0,115730.0,0.02445]
[1758462656589,0.23088235,115740.0,115730.0,0.02445]
[1758462656791,0.59168235,115740.0,115730.0,0.02445]
[1758462659190,0.59168235,115740.0,115730.0,0.13334956]
[1758462659590,0.59168235,115740.0,115730.0,0.02445]
[1758462663191,0.59096856,115740.0,115730.0,0.02445]
[1758462664497,0.59096856,115740.0,115730.0,0.13334956]
[1758462664882,0.23016856,115740.0,115730.0,0.13334956]
[1758462665090,0.59096856,115740.0,115730.0,0.13334956]
[1758462686605,0.59096856,115740.0,115730.0,0.02445]
[1758462693813,0.59096856,115740.0,115730.0,0.13334956]
[1758462700116,0.59096856,115740.0,115730.0,0.02445]
[1758462703021,0.59096856,115740.0,115730.0,0.13334956]
[1758462705128,0.59096856,115740.0,115730.0,0.11189956]
[1758462710122,0.59096856,115740.0,115730.0,0.13366956]
[1758462719344,0.23016856,115740.0,115730.0,0.13366956]
[1758462719535,0.59096856,115740.0,115730.0,0.13366956]
[1758462720640,0.59096856,115740.0,115730.0,0.11189956]
[1758462721640,0.59096856,115740.0,115730.0,0.13496956]
[1758462732445,0.23016856,115740.0,115730.0,0.13496956]
[1758462732749,0.59096856,115740.0,115730.0,0.13496956]
[1758462735351,0.59096856,115740.0,115730.0,0.02607]
[1758462740154,0.59096856,115740.0,115730.0,0.13496956]
[1758462747258,0.59096856,115740.0,115730.0,0.02607]
[1758462751265,0.59096856,115740.0,115730.0,0.13496956]
[1758462752367,0.23016856,115740.0,115730.0,0.13496956]
[1758462752568,0.59096856,115740.0,115730.0,0.13496956]
[1758462753360,0.59096856,115740.0,115730.0,0.02607]
[1758462753764,0.59096856,115740.0,115730.0,0.13496956]
[1758462759871,0.59096856,115740.0,115730.0,0.02607]
[1758462761473,0.23016856,115740.0,115730.0,0.02607]
[1758462761772,0.59096856,115740.0,115730.0,0.02607]
[1758462764273,0.59096856,115740.0,115730.0,0.13496956]
[1758462770989,0.23016856,115740.0,115730.0,0.13496956]
[1758462784801,0.21042132,115740.0,115730.0,0.13496956]
[1758462793602,0.21042132,115740.0,115730.0,0.02607]
[1758462795208,0.21042132,115740.0,115730.0,0.13496956]
[1758462843047,0.57122132,115740.0,115730.0,0.13496956]
[1758462843446,0.57122132,115740.0,115730.0,0.02607]
[1758462849844,0.57122132,115740.0,115730.0,0.13496956]
[1758462854941,0.21042132,115740.0,115730.0,0.13496956]
[1758462855145,0.57122132,115740.0,115730.0,0.13496956]
[1758462858459,0.21042132,115740.0,115730.0,0.13496956]
[1758462858661,0.57122132,115740.0,115730.0,0.13496956]
[1758462864565,0.21042132,115740.0,115730.0,0.13496956]
[1758462864768,0.57122132,115740.0,115730.0,0.13496956]
[1758462885879,0.21042132,115740.0,115730.0,0.13496956]
[1758462886079,0.57122132,115740.0,115730.0,0.02607]
[1758462890880,0.21042132,115740.0,115730.0,0.02607]
[1758462891182,0.57122132,115740.0,115730.0,0.02607]
[1758462892983,0.57122132,115740.0,115730.0,0.13496956]
[1758462897391,0.57122132,115740.0,115730.0,0.02607]
[1758462899896,0.57122132,115740.0,115730.0,0.13496956]
[1758462903101,0.57122132,115740.0,115730.0,0.02607]
[1758462905198,0.57122132,115740.0,115730.0,0.13496956]
[1758462905898,0.21042132,115740.0,115730.0,0.13496956]
[1758462906197,0.57122132,115740.0,115730.0,0.13496956]
[1758462912500,0.21042132,115740.0,115730.0,0.13496956]
[1758462912700,0.57122132,115740.0,115730.0,0.13496956]
[1758462917508,0.21042132,115740.0,115730.0,0.13496956]
[1758462917704,0.57122132,115740.0,115730.0,0.13496956]
[1758462921207,0.57122132,115740.0,115730.0,0.02607]
[1758462926410,0.57122132,115740.0,115730.0,0.13496956]
[1758462935611,0.21042132,115740.0,115730.0,0.13496956]
[1758462935810,0.57122132,115740.0,115730.0,0.13496956]
[1758462944034,0.57122132,115740.0,115730.0,0.02607]
[1758462945230,0.57122132,115740.0,115730.0,0.13496956]
[1758462947634,0.57122132,115740.0,115730.0,0.02607]
[1758462948922,0.57122132,115740.0,115730.0,0.13496956]
[1758462972856,0.57122132,115740.0,115730.0,0.02607]
[1758462981854,0.57122132,115740.0,115730.0,0.13496956]
[1758462982460,0.21042132,115740.0,115730.0,0.13496956]
[1758462982760,0.57122132,115740.0,115730.0,0.13496956]
[1758462986362,0.57122132,115740.0,115730.0,0.02607]
[1758462993065,0.57122132,115740.0,115730.0,0.003]
[1758463006879,0.57122132,115740.0,115730.0,0.11189956]
[1758463019395,0.57122132,115740.0,115730.0,0.003]
[1758463021289,1.35094132,115740.0,115730.0,0.003]
[1758463026690,1.35094132,115740.0,115730.0,0.11189956]
[1758463032698,1.35094132,115740.0,115730.0,0.003]
[1758463042301,1.35094132,115740.0,115730.0,0.11189956]
[1758463050814,1.35094132,115740.0,115730.0,0.003]
[1758463057218,1.35094132,115740.0,115730.0,0.11189956]
[1758463059620,1.35094132,115740.0,115730.0,0.003]
[1758463060118,1.35094132,115740.0,115730.0,0.11189956]
[1758463063423,1.35094132,115740.0,115730.0,0.003]
[1758463064421,0.99014132,115740.0,115730.0,0.003]
[1758463064623,1.35094132,115740.0,115730.0,0.003]
[1758463076534,1.35094132,115740.0,115730.0,0.11189956]
[1758463079137,1.35094132,115740.0,115730.0,0.003]
[1758463088243,1.35094132,115740.0,115730.0,0.11189956]
[1758463088442,1.35094132,115740.0,115730.0,0.13498956]
[1758463088844,1.35074132,115740.0,115730.0,0.13498956]
[1758463090849,1.35074132,115740.0,115730.0,0.02609]
[1758463094358,0.57122132,115740.0,115730.0,0.02609]
[1758463094548,1.35074132,115740.0,115730.0,0.02609]
[1758463096356,1.35074132,115740.0,115730.0,0.13498956]
[1758463118480,0.98994132,115740.0,115730.0,0.13498956]
[1758463118680,1.35074132,115740.0,115730.0,0.13498956]
[1758463125586,0.98994132,115740.0,115730.0,0.13498956]
[1758463125784,1.35074132,115740.0,115730.0,0.13498956]
[1758463129582,1.35074132,115740.0,115730.0,0.11189956]
[1758463129793,1.35074132,115740.0,115730.0,0.13452956]
[1758463135292,1.35074132,115740.0,115730.0,0.02563]
[1758463142598,1.35074132,115740.0,115730.0,0.13452956]
[1758463152896,0.98994132,115740.0,115730.0,0.13452956]
[1758463153103,1.35074132,115740.0,115730.0,0.13452956]
[1758463159309,0.98994132,115740.0,115730.0,0.13452956]
[1758463159505,1.35074132,115740.0,115730.0,0.13452956]
[1758463175431,1.35074132,115740.0,115730.0,0.13552956]
[1758463177935,1.35074132,115740.0,115730.0,0.02663]
[1758463179941,0.57122132,115740.0,115730.0,0.02663]
[1758463180132,1.35134132,115740.0,115730.0,0.02663]
[1758463180537,0.57122132,115740.0,115730.0,0.02663]
[1758463180726,1.35130132,115740.0,115730.0,0.02663]
[1758463184032,1.35130132,115740.0,115730.0,0.13552956]
[1758463190348,1.34330132,115740.0,115730.0,0.13252956]
[1758463190546,1.35130132,115740.0,115730.0,0.13552956]
[1758463197549,1.35130132,115740.0,115730.0,0.02663]
[1758463204150,1.35094132,115740.0,115730.0,0.02663]
[1758463205647,0.99014132,115740.0,115730.0,0.02663]
[1758463205843,1.35094132,115740.0,115730.0,0.02663]
[1758463208950,1.35086132,115740.0,115730.0,0.13552956]
[1758463210759,0.57122132,115740.0,115730.0,0.13552956]
[1758463210962,1.35082132,115740.0,115730.0,0.13552956]
[1758463211754,0.57122132,115740.0,115730.0,0.13552956]
[1758463211957,1.35082132,115740.0,115730.0,0.13552956]
[1758463217560,0.21042132,115740.0,115730.0,0.13552956]
[1758463217760,0.99006132,115740.0,115730.0,0.13552956]
[1758463224262,0.21042132,115740.0,115730.0,0.13552956]
[1758463236782,0.20985174,115740.0,115730.0,0.13552956]
[1758463241488,0.20985174,115740.0,115730.0,0.02663]
[1758463242687,0.20985174,115740.0,115730.0,0.13552956]
[1758463254699,0.20985174,115740.0,115730.0,0.02663]
[1758463264402,0.20985174,115740.0,115730.0,0.13552956]
[1758463288632,0.20985174,115740.0,115730.0,0.49632956]
[1758463288833,0.20985174,115740.0,115730.0,0.38743]
[1758463294536,0.20985174,115740.0,115730.0,0.49624573]
[1758463298034,0.20985174,115740.0,115730.0,1.27580573]
[1758463301745,0.20985174,115740.0,115730.0,1.28888573]
[1758463304952,0.20985174,115740.0,115730.0,1.18007]
[1758463323366,0.20985174,115740.0,115730.0,0.81927]
[1758463323660,0.20985174,115740.0,115730.0,1.18007]
[1758463326959,0.19712174,115740.0,115730.0,1.37529085]
[1758463327359,0.19712174,115740.0,115730.0,1.2664258]
[1758463327569,0.18752328,115740.0,115730.0,1.2664258]
[1758463327764,0.1181435,115740.0,115730.0,1.2664258]
[1758463328069,0.1181435,115740.0,115730.0,1.5164258]
[1758463328268,0.1181435,115740.0,115730.0,1.67199661]
[1758463332169,0.1163035,115740.0,115730.0,1.67199661]
[1758463332370,0.1160735,115740.0,115730.0,1.67199661]
[1758463333076,0.1155635,115740.0,115730.0,1.67199661]
[1758463333371,0.1152235,115740.0,115730.0,1.67199661]
[1758463334573,0.1152235,115740.0,115730.0,1.5164258]